Workbook

Sheet WIRE04
A1: PIANO WIRE
C3: MATERIAL: POLISHED SPRING STEEL
C4: Specification: BS 5216 ND3
A6: SIZE | E6: SALES PRICE PER KILO
A7: MM | B7: S.W.G. | C7: PART NO.
A8: 3.15 | B8: 10 | C8: 101-3150 | D8: 13.8 | E8: =D8*1.05*1.05*1.05*1.05*1.1*1.1*1.05*1.1*1.1 -> 25.78673293
A9: 2.5 | B9: 12 | C9: 101-2500 | D9: 13.8 | E9: 25.78673293
A10: 2.24 | B10: 13 | C10: 101-2240 | D10: 13.8 | E10: 25.78673293
A11: 2 | B11: 14 | C11: 101-2000 | D11: 13.8 | E11: 25.78673293
A12: 1.6 | B12: 16 | C12: 101-1600 | D12: 13.93 | E12: 26.02965143
A13: 1.4 | B13: 17 | C13: 101-1400 | D13: 13.93 | E13: 26.02965143 | J13: Galvanised | K13: Not Polished
A14: 1.25 | B14: 18 | C14: 101-1250 | D14: 14.06 | E14: 26.27256993 | J14: Galvanised | K14: Not Polished
A15: 1.12 | C15: 101-1120 | D15: 14.06 | E15: 26.27256993
A16: 1 | B16: 19 | C16: 101-1000 | D16: 14.43 | E16: 26.96395335 | J16: Galvanised | K16: Not Polished
A17: 0.9 | B17: 20 | C17: 101-0900 | D17: 14.73 | E17: 27.5245345 | J17: Galvanised | K17: Not Polished
A18: 0.8 | B18: 21 | C18: 101-0800 | D18: 15.6 | E18: 29.15021984
A19: 0.71 | B19: 22 | C19: 101-0710 | D19: 16.8 | E19: 31.39254444 | J19: Galvanised | K19: Not Polished
A20: 0.63 | B20: 23 | C20: 101-0630 | D20: 23.76 | E20: 44.39802714 | J20: Galvanised | K20: Not Polished
A21: 0.56 | B21: 24 | C21: 101-0560 | D21: 24.49 | E21: 45.76210794 | J21: Galvanised | K21: Not Polished
A22: 0.5 | B22: 25 | C22: 101-0500 | D22: 24.8 | E22: 46.34137512 | J22: Galvanised | K22: Not Polished
A23: 0.45 | B23: 26 | C23: 101-0450 | D23: 27.25 | E23: 50.91945452
A24: 0.4 | B24: 27 | C24: 101-0400 | D24: 32.77 | E24: 61.23414769
E27: 0-1.9
A28: 0.355 | B28: 29 | C28: 101-0355 | D28: 34.8 | E28: =D28*1.05*1.05*1.05*1.05*1.1*1.1*1.05*1.1*1.1 -> 65.02741348
A29: 0.315 | B29: 30 | C29: 101-0315 | D29: 38.94 | E29: 72.76343336
E46: SURGICAL WIRE SAWS
E48: MATERIAL 316
E51: S/S FERRULE
E52: CHARNLEY
C54: PART NO | F54: LENGTH | H54: PRICE
C56: 730-0030 | F56: 30 cm | H56: 25
C57: 730-0040 | F57: 40 cm | H57: 25
C58: 730-0050 | F58: 50 cm | H58: 25
C59: 730-0070 | F59: 70 cm | H59: 25
E62: GIGLI
E63: WITH S/S FERRULES
C65: 732-0030N | F65: 30 cm | H65: 15
C66: 732-0040N | F66: 40 cm | H66: 12
C67: 732-0050N | F67: 50 cm | H67: 12
C68: 732-0070N | F68: 70 cm | H68: 12
C92: STAINLESS STEEL BRAID
C93: MATERIAL GRADE 316
A96: CONSTRUCTION | E96: SIZE | G96: PART NO. | I96: PRICE PER METRE
A97: MM | E97: MM
A99: 16/1/0.2 | E99: 1.25 | G99: 113B-1250 | I99: 2.2
A100: 16/1/0.16 | E100: 0.9 | G100: 113B-0900 | I100: 2.37
A101: 16/1/0.125 | E101: 0.71 | G101: 113B-0710 | I101: 2.94
A102: 16/1/0.1 | E102: 0.56 | G102: 113B-0560 | I102: 3.39
A103: 16/1/0.08 | E103: 0.45 | G103: 113B-0450 | I103: 3.96
A104: 16/1/0.071 | E104: 0.375 | G104: 113B-0375 | I104: 4.7
A105: 16/1/0.63 | E105: 0.315 | G105: 113B-0315 | I105: 4.99
A106: 16/1/0.56 | E106: 0.28 | G106: 113B-0280 | I106: 5.15
A107: 16/1/0.50 | E107: 0.224 | G107: 113B-0224 | I107: 5.29
A108: 8/1/0.063 | E108: 0.2 | G108: 113B-0200 | I108: 5.58
A109: 8/1/0.050 | E109: 0.16 | G109: 113B-0160 | I109: 5.73
E138: Annealed Stainless Steel Wire
E139: Material Grade 316
E141: X 10 METRE REELS
A144: SIZE | B144: PART NO. | E144: 1 to 99 | G144: 100-249 | I144: 250-499 | J144: 500+
A146: 1.6 | B146: 108B-1600 | D146: 8 | E146: =D146*1.1*1.04*1.05*1.05*1.05*1.05*1.1*1.05*1.05*1.05*1.05*1.1*1.1*1.05*1.1*1.1 -> 22.86562775 | G146: =E146*0.9 -> 20.57906497 | I146: =E146*0.85 -> 19.43578358 | J146: =E146*0.8 -> 18.2925022
A147: 1.25 | B147: 108B-1250 | D147: 7.28 | E147: 20.80772125 | G147: 18.72694912 | I147: 17.68656306 | J147: 16.646177
A148: 0.9 | B148: 108B-0900 | D148: 5.78 | E148: 16.52041605 | G148: 14.86837444 | I148: 14.04235364 | J148: 13.21633284
A149: 0.71 | B149: 108B-0710 | D149: 5.2 | E149: 14.86265803 | G149: 13.37639223 | I149: 12.63325933 | J149: 11.89012643
A150: 0.56 | B150: 108B-0560 | D150: 4.85 | E150: 13.86228682 | G150: 12.47605814 | I150: 11.7829438 | J150: 11.08982946
A151: 0.45 | B151: 108B-0450 | D151: 4.65 | E151: 13.29064613 | G151: 11.96158151 | I151: 11.29704921 | J151: 10.6325169
A152: 0.4 | B152: 108B-0400 | D152: 4.65 | E152: 13.29064613 | G152: 11.96158151 | I152: 11.29704921 | J152: 10.6325169
A153: 0.315 | B153: 108B-0315 | D153: 4.65 | E153: 13.29064613 | G153: 11.96158151 | I153: 11.29704921 | J153: 10.6325169
A154: 0.28 | B154: 108B-0280 | D154: 4.65 | E154: 13.29064613 | G154: 11.96158151 | I154: 11.29704921 | J154: 10.6325169
A155: 0.224 | B155: 108B-0224 | D155: 4.65 | E155: 13.29064613 | G155: 11.96158151 | I155: 11.29704921 | J155: 10.6325169
A156: 0.2 | B156: 108B-0200 | D156: 4.65 | E156: 13.29064613 | G156: 11.96158151 | I156: 11.29704921 | J156: 10.6325169
A157: 0.16 | B157: 108B-0160 | D157: 4.65 | E157: 13.29064613 | G157: 11.96158151 | I157: 11.29704921 | J157: 10.6325169
A158: 0.125 | B158: 108B-0125 | D158: 4.65 | E158: 13.29064613 | G158: 11.96158151 | I158: 11.29704921 | J158: 10.6325169
C161: MATERIAL: ANNEALED POLISHED STAINLESS STEEL | J161: IMPLANT GRADE
C162: Specification: BS 7252:PART 1:1990
E164: X 10 MTR REELS
A166: SIZE | B166: PART NO. | E166: 1 to 99 | G166: 100-249 | I166: 250-499 | J166: 500+
A168: 1.6 | B168: 208B-1600 | D168: 17.9 | E168: =D168*1.1*1.04*1.05*1.05*1.05*1.07*1.1*1.05*1.05*1.05*1.05*1.1*1.1*1.05*1.1*1.1 -> 52.13635336 | G168: =E168*0.9 -> 46.92271802 | I168: =E168*0.85 -> 44.31590036 | J168: =E168*0.8 -> 41.70908269
A169: 1.25 | B169: 208B-1250 | D169: 11.9 | E169: 34.66048073 | G169: 31.19443265 | I169: 29.46140862 | J169: 27.72838458
A170: 0.9 | B170: 208B-0900 | D170: 8.67 | E170: 25.25263596 | G170: 22.72737236 | I170: 21.46474056 | J170: 20.20210877
A171: 0.71 | B171: 208B-0710 | D171: 7.16 | E171: 20.85454134 | G171: 18.76908721 | I171: 17.72636014 | J171: 16.68363308
A172: 0.56 | B172: 208B-0560 | D172: 6.36 | E172: 18.52442499 | G172: 16.67198249 | I172: 15.74576124 | J172: 14.81953999
A173: 0.45 | B173: 208B-0450 | D173: 5.78 | E173: 16.83509064 | G173: 15.15158157 | I173: 14.30982704 | J173: 13.46807251
A174: 0.4 | B174: 208B-0400 | D174: 5.78 | E174: 16.83509064 | G174: 15.15158157 | I174: 14.30982704 | J174: 13.46807251
A175: 0.315 | B175: 208B-0315 | D175: 5.78 | E175: 16.83509064 | G175: 15.15158157 | I175: 14.30982704 | J175: 13.46807251
A176: 0.2 | B176: 208B-0200 | D176: 5.78 | E176: 16.83509064 | G176: 15.15158157 | I176: 14.30982704 | J176: 13.46807251
C184: ANNEALED POLISHED STAINLESS STEEL WIRE
C185: Material Grade 316
E188: X 25 GRAM REELS
A191: SIZE | C191: PRICE EACH REEL
A192: MM | B192: PART NO. | F192: 1 to 20 | G192: 21-60 | H192: 61-120 | I192: 120+
A194: 1.6 | B194: 108A-1600 | D194: 5.78 | F194: 13.66 | G194: =F194*0.67 -> 9.1522 | H194: =F194*0.6 -> 8.196 | I194: =F194*0.55 -> 7.513
A195: 1.25 | B195: 108A-1250 | D195: 5.78 | F195: 13.66 | G195: 9.1522 | H195: 8.196 | I195: 7.513
A196: 1 | B196: 108A-1000 | D196: 5.78 | F196: 13.66 | G196: 9.1522 | H196: 8.196 | I196: 7.513
A197: 0.9 | B197: 108A-0900 | D197: 5.78 | F197: 13.66 | G197: 9.1522 | H197: 8.196 | I197: 7.513
A198: 0.8 | B198: 108A-0800 | D198: 5.78 | F198: 13.66 | G198: 9.1522 | H198: 8.196 | I198: 7.513
A199: 0.71 | B199: 108A-0710 | D199: 5.78 | F199: 13.66 | G199: 9.1522 | H199: 8.196 | I199: 7.513
A200: 0.63 | B200: 108A-0630 | D200: 5.78 | F200: 13.66 | G200: 9.1522 | H200: 8.196 | I200: 7.513
A201: 0.56 | B201: 108A-0560 | D201: 5.78 | F201: 13.66 | G201: 9.1522 | H201: 8.196 | I201: 7.513
A202: 0.5 | B202: 108A-0500 | D202: 5.78 | F202: 13.66 | G202: 9.1522 | H202: 8.196 | I202: 7.513
A203: 0.45 | B203: 108A-0450 | D203: 5.78 | F203: 13.66 | G203: 9.1522 | H203: 8.196 | I203: 7.513
A204: 0.4 | B204: 108A-0400 | D204: 5.78 | F204: 13.66 | G204: 9.1522 | H204: 8.196 | I204: 7.513
A205: 0.315 | B205: 108A-0315 | D205: 5.78 | F205: 13.66 | G205: 9.1522 | H205: 8.196 | I205: 7.513
A206: 0.28 | B206: 108A-0280 | D206: 5.78 | F206: 13.66 | G206: 9.1522 | H206: 8.196 | I206: 7.513
A207: 0.25 | B207: 108A-0250 | D207: 5.78 | F207: 13.66 | G207: 9.1522 | H207: 8.196 | I207: 7.513
A208: 0.224 | B208: 108A-0224 | D208: 5.78 | F208: 13.66 | G208: 9.1522 | H208: 8.196 | I208: 7.513
A209: 0.2 | B209: 108A-0200 | D209: 5.78 | F209: 13.66 | G209: 9.1522 | H209: 8.196 | I209: 7.513
A210: 0.125 | B210: 108A-0125 | D210: 7.51 | F210: 17.22 | G210: 11.5374 | H210: 10.332 | I210: 9.471
A211: 0.1 | B211: 108A-0100 | D211: 9.24 | F211: 20.53 | G211: 13.7551 | H211: 12.318 | I211: 11.2915
C230: MATERIAL: HARD POLISHED STAINLESS STEEL
C231: Material Grade 316
A233: SIZE | E233: SALES PRICE PER KILO
A234: MM | B234: S.W.G. | C234: PART NO. | E234: 0-2.9 | F234: 3-6.9 | G234: 7-12.9 | H234: 13-24.9 | I234: 25+KG
A235: 3.15 | B235: 10 | C235: 107-3150 | D235: 24.95 | E235: =D235*1.04*1.04*1.05*1.05*1.05*1.07*1.15*1.05*1.05*1.05*1.05*1.1*1.1*1.05*1.1*1.1 -> 71.82968796 | F235: =E235*0.9 -> 64.64671916 | G235: =E235*0.8 -> 57.46375037 | H235: =E235*0.6 -> 43.09781278 | I235: =E235*0.55 -> 39.50632838
A236: 2.5 | B236: 12 | C236: 107-2500 | D236: 24.95 | E236: 71.82968796 | F236: 64.64671916 | G236: 57.46375037 | H236: 43.09781278 | I236: 39.50632838
A237: 2 | B237: 14 | C237: 107-2000 | D237: 24.95 | E237: 71.82968796 | F237: 64.64671916 | G237: 57.46375037 | H237: 43.09781278 | I237: 39.50632838
A238: 1.6 | B238: 16 | C238: 107-1600 | D238: 24.95 | E238: 71.82968796 | F238: 64.64671916 | G238: 57.46375037 | H238: 43.09781278 | I238: 39.50632838
A239: 1.4 | B239: 17 | C239: 107-1400 | D239: 25.9 | E239: 74.5646861 | F239: 67.10821749 | G239: 59.65174888 | H239: 44.73881166 | I239: 41.01057735
A240: 1.25 | B240: 18 | C240: 107-1250 | D240: 26.06 | E240: 75.02531736 | F240: 67.52278563 | G240: 60.02025389 | H240: 45.01519042 | I240: 41.26392455
A241: 1 | B241: 19 | C241: 107-1000 | D241: 29.45 | E241: 84.7849423 | F241: 76.30644807 | G241: 67.82795384 | H241: 50.87096538 | I241: 46.63171827
A242: 0.9 | B242: 20 | C242: 107-0900 | D242: 29.54 | E242: 85.04404739 | F242: 76.53964265 | G242: 68.03523791 | H242: 51.02642843 | I242: 46.77422606
A243: 0.8 | B243: 21 | C243: 107-0800 | D243: 30.02 | E243: 86.42594118 | F243: 77.78334707 | G243: 69.14075295 | H243: 51.85556471 | I243: 47.53426765
A244: 0.71 | B244: 22 | C244: 107-0710 | D244: 27.52 | E244: 79.22857766 | F244: 71.3057199 | G244: 63.38286213 | H244: 47.5371466 | I244: 43.57571771
A245: 0.63 | B245: 23 | C245: 107-0630 | D245: 30.42 | E245: 87.57751935 | F245: 78.81976741 | G245: 70.06201548 | H245: 52.54651161 | I245: 48.16763564
A246: 0.56 | B246: 24 | C246: 107-0560 | D246: 30.75 | E246: 88.52757133 | F246: 79.6748142 | G246: 70.82205707 | H246: 53.1165428 | I246: 48.69016423
A247: 0.5 | B247: 25 | C247: 107-0500 | D247: 32.12 | E247: 92.47172654 | F247: 83.22455389 | G247: 73.97738123 | H247: 55.48303593 | I247: 50.8594496
A248: 0.45 | B248: 26 | C248: 107-0450 | D248: 32.7 | E248: 94.14151488 | F248: 84.72736339 | G248: 75.3132119 | H248: 56.48490893 | I248: 51.77783318
A249: 0.4 | B249: 27 | C249: 107-0400 | D249: 35.5 | E249: 102.202562 | F249: 91.98230582 | G249: 81.76204962 | H249: 61.32153722 | I249: 56.21140911
E253: 0-1.8 | F253: 2-3.9 | G253: 4-6.9 | H253: 7-12.9 | I253: 13+KG
A254: 0.355 | B254: 29 | C254: 107-0355 | D254: 38.3 | E254: =D254*1.04*1.04*1.05*1.05*1.05*1.07*1.15*1.05*1.05*1.05*1.05*1.1*1.1*1.05*1.1*1.1 -> 110.2636092 | F254: =E254*0.9 -> 99.23724826 | G254: =E254*0.8 -> 88.21088734 | H254: =E254*0.6 -> 66.1581655 | I254: =E254*0.55 -> 60.64498504
A255: 0.315 | B255: 30 | C255: 107-0315 | D255: 38.3 | E255: 110.2636092 | F255: 99.23724826 | G255: 88.21088734 | H255: 66.1581655 | I255: 60.64498504
A256: 0.224 | B256: 34 | C256: 107-0224 | D256: 57.02 | E256: 164.1574672 | F256: 147.7417205 | G256: 131.3259738 | H256: 98.49448034 | I256: 90.28660698
C276: MATERIAL: ANNEALED POLISHED STAINLESS STEEL
C277: Material Grade 316
E281: 0-1.8 | F281: 2-3.9 | G281: 4-6.9 | H281: 7-12.9 | I281: 13+KG
A282: 1.6 | B282: 16 | C282: 108-1600 | D282: 27.65 | E282: =D282*1.04*1.04*1.05*1.05*1.05*1.07*1.15*1.05*1.05*1.05*1.05*1.1*1.1*1.05*1.1*1.1 -> 79.60284056 | F282: =E282*0.9 -> 71.64255651 | G282: =E282*0.8 -> 63.68227245 | H282: =E282*0.6 -> 47.76170434 | I282: =E282*0.55 -> 43.78156231
A283: 1.25 | B283: 18 | C283: 108-1250 | D283: 29.37 | E283: 84.55462667 | F283: 76.099164 | G283: 67.64370133 | H283: 50.732776 | I283: 46.50504467
A284: 1 | B284: 19 | C284: 108-1000 | D284: 31.34 | E284: 90.22614912 | F284: 81.20353421 | G284: 72.1809193 | H284: 54.13568947 | I284: 49.62438202
A285: 0.9 | B285: 20 | C285: 108-0900 | D285: 33 | E285: 95.0051985 | F285: 85.50467865 | G285: 76.0041588 | H285: 57.0031191 | I285: 52.25285918
A286: 0.8 | B286: 21 | C286: 108-0800 | D286: 33.5 | E286: 96.44467121 | F286: 86.80020409 | G286: 77.15573697 | H286: 57.86680272 | I286: 53.04456916
A287: 0.71 | B287: 22 | C287: 108-0710 | D287: 34.52 | E287: 99.38119553 | F287: 89.44307597 | G287: 79.50495642 | H287: 59.62871732 | I287: 54.65965754
A288: 0.63 | B288: 23 | C288: 108-0630 | D288: 34.52 | E288: 99.38119553 | F288: 89.44307597 | G288: 79.50495642 | H288: 59.62871732 | I288: 54.65965754
A289: 0.56 | B289: 24 | C289: 108-0560 | D289: 36.43 | E289: 104.8799813 | F289: 94.39198313 | G289: 83.90398501 | H289: 62.92798875 | I289: 57.68398969
A290: 0.5 | B290: 25 | C290: 108-0500 | D290: 37.47 | E290: 107.8740845 | F290: 97.08667603 | G290: 86.29926759 | H290: 64.72445069 | I290: 59.33074647
A291: 0.45 | B291: 26 | C291: 108-0450 | D291: 41.85 | E291: 120.4838654 | F291: 108.4354788 | G291: 96.3870923 | H291: 72.29031923 | I291: 66.26612596
A292: 0.4 | B292: 27 | C292: 108-0400 | D292: 43.63 | E292: 125.6083882 | F292: 113.0475494 | G292: 100.4867106 | H292: 75.36503292 | I292: 69.08461351
E295: 0-0.8 | F295: 1-1.9 | G295: 2-3.9 | H295: 4-6.9 | I295: 7+KG
A296: 0.315 | B296: 30 | C296: 108-0315 | D296: 53.35 | E296: =D296*1.04*1.04*1.05*1.05*1.05*1.07*1.15*1.05*1.05*1.05*1.05*1.1*1.1*1.05*1.1*1.1 -> 153.5917376 | F296: =E296*0.9 -> 138.2325638 | G296: =E296*0.8 -> 122.8733901 | H296: =E296*0.6 -> 92.15504255 | I296: =E296*0.55 -> 84.47545567
A297: 0.25 | B297: 33 | C297: 108-0250 | D297: 55.08 | E297: 158.5723131 | F297: 142.7150818 | G297: 126.8578505 | H297: 95.14338788 | I297: 87.21477223
A298: 0.224 | B298: 34 | C298: 108-0224 | D298: 58.94 | E298: 169.6850424 | F298: 152.7165382 | G298: 135.7480339 | H298: 101.8110255 | I298: 93.32677333
A299: 0.2 | B299: 36 | C299: 108-0200 | D299: 62.83 | E299: 180.8841401 | F299: 162.7957261 | G299: 144.707312 | H299: 108.530484 | I299: 99.48627703
A300: 0.125 | B300: 40 | C300: 108-0125 | D300: 81.6 | E300: 234.9219454 | F300: 211.4297509 | G300: 187.9375563 | H300: 140.9531672 | I300: 129.20707
A301: 0.1 | B301: 42 | C301: 108-0100 | D301: 151.83 | E301: 437.1102815 | F301: 393.3992533 | G301: 349.6882252 | H301: 262.2661689 | I301: 240.4106548
A302: 0.071 | B302: 45 | C302: 108-0071 | D302: 195.21 | E302: 561.9989333 | F302: 505.79904 | G302: 449.5991467 | H302: 337.19936 | I302: 309.0994133
C322: MATERIAL: ANNEALED POLISHED STAINLESS STEEL | J322: IMPANT GRADE
C323: Specification: ISO 5832-1 2007
A325: SIZE | E325: SALES PRICE PER KILO
A326: MM | B326: S.W.G. | C326: PART NO. | E326: 0-1.9 | F326: 2-3.9 | G326: 4-6.9 | H326: 7-12.9 | I326: 13+KG
A327: 1.6 | B327: 16 | C327: 208-1600 | D327: 70.46 | E327: =D327*1.05*1.04*1.05*1.05*1.05*1.07*1.15*1.05*1.05*1.05*1.05*1.1*1.1*1.05*1.05*1.1*1.1 -> 215.041028 | F327: =E327*0.9 -> 193.5369252 | G327: =E327*0.8 -> 172.0328224 | H327: =E327*0.6 -> 129.0246168 | I327: =E327*0.55 -> 118.2725654
A328: 1.25 | B328: 18 | C328: 208-1250 | D328: 70.46 | E328: 215.041028 | F328: 193.5369252 | G328: 172.0328224 | H328: 129.0246168 | I328: 118.2725654
A329: 0.9 | B329: 20 | C329: 208-0900 | D329: 72.07 | E329: 219.9546819 | F329: 197.9592137 | G329: 175.9637455 | H329: 131.9728092 | I329: 120.9750751
A330: 0.71 | B330: 22 | C330: 208-0710 | D330: 73.95 | E330: 225.6923648 | F330: 203.1231283 | G330: 180.5538918 | H330: 135.4154189 | I330: 124.1308006
A331: 0.56 | B331: 24 | C331: 208-0560 | D331: 84.9 | E331: 259.1113153 | F331: 233.2001838 | G331: 207.2890523 | H331: 155.4667892 | I331: 142.5112234
A332: 0.45 | B332: 26 | C332: 208-0450 | D332: 88.02 | E332: 268.6334273 | F332: 241.7700845 | G332: 214.9067418 | H332: 161.1800564 | I332: 147.748385
A333: 0.4 | B333: 27 | C333: 208-0400 | D333: 91.28 | E333: 278.5828135 | F333: 250.7245321 | G333: 222.8662508 | H333: 167.1496881 | I333: 153.2205474
A334: 0.315 | B334: 30 | C334: 208-0315 | D334: 96.1 | E334: 293.2932556 | F334: 263.9639301 | G334: =F334*0.9 -> 237.567537 | H334: 213.8107833 | I334: 192.429705
A335: 0.25 | B335: 33 | C335: 208-0250 | D335: 100 | E335: 305.1958955 | F335: 274.676306 | G335: =F335*0.9 -> 247.2086754 | H335: 222.4878079 | I335: 200.2390271
A336: 0.2 | B336: 36 | C336: 208-0200 | D336: 121.28 | E336: 370.1415821 | F336: 333.1274239 | G336: =F336*0.9 -> 299.8146815 | H336: 269.8332134 | I336: 242.849892
A337: 0.125 | B337: 40 | C337: 208-0125 | D337: 150 | E337: 457.7938433 | F337: 412.014459 | G337: =F337*0.9 -> 370.8130131 | H337: 333.7317118 | I337: 300.3585406
C341: MATERIAL: STAINLESS STEEL LOCKING WIRE
C342: Material Grade 316
E344: X 500 GRM CANS
E348: SALES PRICE PER CAN
A349: MM | B349: S.W.G. | C349: PART NO. | E349: 0-4 | F349: 5 TO 8 | G349: 9 TO 14 | H349: 15 TO 26 | I349: 26+
A350: 0.8 | B350: 21 | C350: 108-CAN-0800 | D350: 19.48 | E350: =D350*1.04*1.04*1.05*1.05*1.05*1.07*1.15*1.05*1.05*1.05*1.05*1.1*1.1*1.05*1.1*1.1 -> 56.08185657 | F350: =E350*0.9 -> 50.47367091 | G350: =E350*0.8 -> 44.86548526 | H350: =E350*0.6 -> 33.64911394 | I350: =E350*0.55 -> 30.84502111
A351: 0.5 | B351: 25 | C351: 108-CAN-0500 | D351: 22.07 | E351: 63.53832518 | F351: 57.18449266 | G351: 50.83066014 | H351: 38.12299511 | I351: 34.94607885
E368: MATERIAL: ANNEALED STEEL LOCKING WIRE.
E369: SPECIFICATION: DTD 189A
F373: SALES PRICE PER KILO
A374: S.W.G. | B374: PART NO. | E374: 0-0.9 | F374: 1-1.9 | G374: 2-3.9 | H374: 4-6.9 | I374: 7+
A375: 14 | B375: 108DTD-2000 | D375: 82.72 | E375: =D375*1.04*1.04*1.05*1.05*1.05*1.07*1.1*1.05*1.05*1.05*1.05*1.1*1.1*1.05*1.1*1.1 -> 227.7921745 | F375: =E375*0.9 -> 205.012957 | G375: 184.5116613 | H375: 166.0604952 | I375: 149.4544457
A376: 16 | B376: 108DTD-1600 | D376: 100 | E376: 275.377387 | F376: =E376*0.9 -> 247.8396483 | G376: 223.0556834 | H376: 200.7501151 | I376: 180.6751036
A377: 18 | B377: 108DTD-0018 | D377: 83.88 | E377: 230.9865522 | F377: =E377*0.9 -> 207.887897 | G377: =E377*0.8 -> 184.7892418 | H377: =E377*0.6 -> 138.5919313 | I377: =E377*0.55 -> 127.0426037
A378: 20 | B378: 108DTD-0020 | D378: 83.88 | E378: 230.9865522 | F378: 207.887897 | G378: 184.7892418 | H378: 138.5919313 | I378: 127.0426037
A379: 21 | B379: 108DTD-0021 | D379: 85.03 | E379: 234.1533921 | F379: 210.7380529 | G379: 187.3227137 | H379: 140.4920353 | I379: 128.7843657
A380: 22 | B380: 108DTD-0022 | D380: 85.4 | E380: 235.1722885 | F380: 211.6550596 | G380: 188.1378308 | H380: 141.1033731 | I380: 129.3447587
A381: 24 | B381: 108DTD-0024 | D381: 82.18 | E381: 226.3051366 | F381: 203.6746229 | G381: 181.0441093 | H381: 135.783082 | I381: 124.4678251
A382: 25 | B382: 108DTD-0025 | D382: 86.9 | E382: 239.3029493 | F382: 215.3726543 | G382: 191.4423594 | H382: 143.5817696 | I382: 131.6166221
A383: 26 | B383: 108DTD-0026 | D383: 91.4 | E383: 251.6949317 | F383: 226.5254385 | G383: 201.3559454 | H383: 151.016959 | I383: 138.4322124
C414: MATERIAL: ANNEALED PLAIN COPPER
C415: Material Grade BSEN 13602:2013
A419: SIZE | E419: SALES PRICE PER KILO
A420: MM | B420: S.W.G. | C420: PART NO. | E420: 0-2.9 | F420: 3-6.9 | G420: 7-12.9 | H420: 13-24.9 | I420: 25+
A421: 3.25 | B421: 10 | C421: 201-3250 | D421: 13.3 | E421: =D421*1.03*1.04*1.05*1.05*1.05*1.05*1.1*1.05*1.5*1.05*1.05*1.05*1.1*1.1*1.05*1.1*1.1 -> 53.39253997 | F421: =E421*0.9 -> 48.05328597 | G421: =E421*0.8 -> 42.71403198 | H421: =E421*0.6 -> 32.03552398 | I421: =E421*0.55 -> 29.36589698
A422: 2.5 | B422: 12 | C422: 201-2500 | D422: 13.95 | E422: 56.00194982 | F422: 50.40175484 | G422: 44.80155985 | H422: 33.60116989 | I422: 30.8010724
A423: 2 | B423: 14 | C423: 201-2000 | D423: 13.95 | E423: 56.00194982 | F423: 50.40175484 | G423: 44.80155985 | H423: 33.60116989 | I423: 30.8010724
A424: 1.6 | B424: 16 | C424: 201-1600 | D424: 13.68 | E424: 54.91804111 | F424: 49.426237 | G424: 43.93443289 | H424: 32.95082467 | I424: 30.20492261
A425: 1.4 | B425: 17 | C425: 201-1400 | D425: 13.68 | E425: 54.91804111 | F425: 49.426237 | G425: 43.93443289 | H425: 32.95082467 | I425: 30.20492261
A426: 1.25 | B426: 18 | C426: 201-1250 | D426: 13.68 | E426: 54.91804111 | F426: 49.426237 | G426: 43.93443289 | H426: 32.95082467 | I426: 30.20492261
A427: 1 | B427: 19 | C427: 201-1000 | D427: 13.68 | E427: 54.91804111 | F427: 49.426237 | G427: 43.93443289 | H427: 32.95082467 | I427: 30.20492261
A428: 0.9 | B428: 20 | C428: 201-0900 | D428: 13.68 | E428: 54.91804111 | F428: 49.426237 | G428: 43.93443289 | H428: 32.95082467 | I428: 30.20492261
... 114 more rows
